bitfinex-derivatives/quotes_SOLF0:USTF0_20240904
["timestamp","ask_amount","ask_price","bid_price","bid_amount"]
[1725424998829,11.7697,127.55,127.51,3.9218]
[1725424999031,11.7697,127.55,127.51,13.5718]
[1725424999235,3.921,127.54,127.51,3.9218]
[1725424999431,7.849,127.55,127.51,13.5718]
[1725424999627,0.05432687,127.54,127.52,0.05880983]
[1725425001126,3.97532687,127.54,127.52,0.05880983]
[1725425002733,0.05432687,127.54,127.53,9.65]
[1725425003332,0.05432687,127.54,127.53,13.5712]
[1725425005535,3.9197,127.58,127.55,3.9205]
[1725425005738,11.7687,127.58,127.56,9.65]
[1725425006630,11.82657506,127.58,127.56,9.70362295]
[1725425007438,0.05787506,127.58,127.57,13.57]
[1725425019942,0.05787506,127.58,127.56,3.97372295]
[1725425020141,0.05787506,127.58,127.56,13.62372295]
[1725425020643,0.05787506,127.58,127.57,3.92]
[1725425020846,0.05787506,127.58,127.57,13.57]
[1725425024146,0.05787506,127.58,127.57,3.92]
[1725425024354,0.05787506,127.58,127.56,13.62372295]
[1725425028051,0.05787506,127.58,127.56,3.97372295]
[1725425028253,0.05787506,127.58,127.56,13.62372295]
[1725425029267,0.05787506,127.58,127.57,9.65]
[1725425030255,0.05787506,127.58,127.57,13.57]
[1725425030457,7.849,127.62,127.57,9.65]
[1725425030656,7.849,127.62,127.6,9.65]
[1725425030858,7.849,127.61,127.6,9.65]
[1725425033257,3.919,127.6,127.59,0.0590986]
[1725425033654,11.768,127.6,127.59,0.0590986]
[1725425033855,7.849,127.6,127.59,0.0590986]
[1725425036163,11.768,127.6,127.59,0.0590986]
[1725425041668,3.9201,127.57,127.55,9.65]
[1725425042674,3.97837473,127.57,127.55,9.70618222]
[1725425044668,11.82737473,127.57,127.55,0.05618222]
[1725425047278,3.9203,127.56,127.55,0.05618222]
[1725425056180,11.82737473,127.57,127.55,0.05618222]
[1725425056392,7.90727473,127.57,127.55,0.05618222]
[1725425056885,11.82727473,127.57,127.55,0.05618222]
[1725425058786,3.9203,127.56,127.55,0.05618222]
[1725425070586,21.4193,127.56,127.55,0.05618222]
[1725425070992,11.7705,127.53,127.49,3.9223]
[1725425071188,7.849,127.53,127.48,96.29491072]
[1725425071889,11.82140378,127.53,127.48,96.29491072]
[1725425072090,11.7708,127.51,127.49,0.05739177]
[1725425076396,7.849,127.51,127.49,0.05739177]
[1725425077295,11.771,127.51,127.49,0.05739177]
[1725425078487,7.90418548,127.52,127.5,9.65]
[1725425079098,7.90418548,127.52,127.5,13.572]
[1725425081895,7.90418548,127.52,127.5,9.65]
[1725425082789,7.90418548,127.52,127.49,13.62969177]
[1725425084289,7.90418548,127.52,127.5,3.9221]
[1725425091108,7.90418548,127.52,127.49,9.70739177]
[1725425092100,0.05518548,127.52,127.5,13.5719]
[1725425094211,0.05518548,127.52,127.51,3.9218]
[1725425094807,0.05518548,127.52,127.49,0.05739177]
[1725425095003,0.05518548,127.52,127.49,3.97969177]
[1725425097301,3.97668548,127.52,127.49,3.97969177]
[1725425097512,7.849,127.51,127.49,3.97969177]
[1725425100813,11.7708,127.51,127.49,3.97969177]
[1725425107816,13.5721,127.5,127.49,0.05739177]
[1725425108006,17.499,127.5,127.41,13.63902631]
[1725425108317,3.9238,127.45,127.41,9.65]
[1725425108512,3.9238,127.45,127.37,2.7508]
[1725425108513,9.65,127.46,127.4,3.92392176]
[1725425108715,9.65,127.45,127.4,3.92392176]
[1725425108914,3.9241,127.44,127.41,3.9247]
[1725425109217,21.52649094,127.45,127.42,0.05321856]
[1725425109415,3.9243,127.43,127.42,0.05321856]
[1725425110123,3.924,127.44,127.42,0.05321856]
[1725425110418,0.05454467,127.45,127.42,9.70321856]
[1725425111120,0.05454467,127.45,127.43,3.924]
[1725425112920,7.847,127.51,127.44,9.65]
[1725425113222,7.847,127.51,127.48,9.65]
[1725425113408,9.65,127.53,127.48,9.65]
[1725425113921,3.922,127.51,127.48,9.65]
[1725425114126,0.05810079,127.52,127.49,0.05446621]
[1725425114423,0.05810079,127.52,127.49,9.70446621]
[1725425115120,0.05810079,127.52,127.5,3.9219]
[1725425115315,0.05810079,127.52,127.49,0.05446621]
[1725425116426,0.05810079,127.52,127.49,3.97676621]
[1725425116927,21.96908897,127.6,127.51,9.65]
[1725425117124,9.65,127.59,127.54,9.65]
[1725425117824,7.847,127.57,127.52,9.65]
[1725425118024,11.79614082,127.56,127.53,0.05664835]
[1725425118327,17.55372916,127.56,127.53,0.05664835]
[1725425118514,21.56966588,127.56,127.53,0.05664835]
[1725425118718,3.9206,127.55,127.53,0.05664835]
[1725425118919,21.56966588,127.56,127.53,0.05664835]
[1725425120424,11.91966588,127.56,127.53,0.05664835]
[1725425121022,11.91966588,127.56,127.53,3.97764835]
[1725425121215,11.91966588,127.56,127.53,9.70664835]
[1725425121728,11.91966588,127.56,127.54,3.9207]
[1725425122828,11.91966588,127.56,127.53,13.62764835]
[1725425123019,0.05672916,127.56,127.53,9.70664835]
[1725425123630,11.74202509,127.56,127.53,9.70664835]
[1725425124427,11.74202509,127.56,127.53,13.62774835]
[1725425125124,0.05672916,127.56,127.55,13.5706]
[1725425129339,0.05672916,127.56,127.53,0.05664835]
[1725425129742,0.05672916,127.56,127.54,3.9209]
[1725425130839,3.97702916,127.56,127.53,3.97774835]
[1725425131528,3.97702916,127.56,127.53,13.62774835]
[1725425134337,0.05672916,127.56,127.54,3.9208]
[1725425136647,0.05672916,127.56,127.53,13.62774835]
[1725425137446,0.05672916,127.56,127.53,3.97774835]
[1725425137746,0.05672916,127.56,127.53,13.62774835]
[1725425138542,0.05672916,127.56,127.54,9.65]
[1725425139139,0.05672916,127.56,127.54,13.5706]
[1725425140944,0.05672916,127.56,127.55,3.9206]
[1725425141538,0.05672916,127.56,127.55,13.5706]
[1725425145546,0.05672916,127.56,127.55,3.9206]
[1725425145843,0.05672916,127.56,127.53,9.70664835]
[1725425146044,3.9208,127.55,127.53,0.05664835]
[1725425146734,3.9209,127.54,127.53,0.05664835]
[1725425147232,7.847,127.53,127.44,2.8623]
[1725425147442,9.65,127.51,127.44,2.8623]
[1725425147647,9.65,127.51,127.45,9.65]
[1725425147840,7.847,127.48,127.42,1.4509]
[1725425148041,7.847,127.48,127.43,9.65]
[1725425148241,0.06026283,127.47,127.44,0.05697731]
[1725425149141,0.06026283,127.47,127.44,9.70697731]
[1725425150348,0.06026283,127.47,127.44,13.63087731]
[1725425152653,0.06026283,127.47,127.44,0.05697731]
[1725425152847,9.71026283,127.47,127.44,0.05697731]
[1725425153046,13.59461482,127.47,127.44,0.05697731]
[1725425153252,3.9233,127.46,127.44,0.05697731]
[1725425156253,3.9236,127.45,127.44,0.05697731]
[1725425158050,3.9236,127.46,127.44,0.05697731]
[1725425158250,7.847,127.45,127.44,0.05697731]
[1725425160952,3.9236,127.45,127.44,0.05697731]
[1725425161158,11.7706,127.45,127.44,0.05697731]
[1725425162556,11.7704,127.46,127.44,0.05697731]
[1725425163660,11.7706,127.45,127.44,0.05697731]
[1725425163853,3.9236,127.45,127.44,0.05697731]
[1725425167847,11.79161482,127.47,127.44,0.05697731]
[1725425168050,0.06026283,127.47,127.44,0.05697731]
[1725425168257,3.94404716,127.46,127.44,0.05697731]
[1725425168561,7.86754716,127.46,127.44,0.05697731]
[1725425168749,13.59404716,127.46,127.44,0.05697731]
[1725425168954,50.0,127.45,127.44,0.05697731]
[1725425173360,53.9236,127.45,127.44,0.05697731]
[1725425173861,3.9244,127.43,127.37,15.02304334]
[1725425174063,17.497,127.44,127.38,9.65]
[1725425174256,17.497,127.44,127.4,3.9251]
[1725425174866,0.05230882,127.43,127.41,0.05592307]
[1725425176154,3.97670882,127.43,127.41,0.05592307]
[1725425176551,9.65,127.42,127.41,0.05592307]
[1725425176755,21.4216,127.42,127.41,0.05592307]
[1725425180063,9.65,127.39,127.32,9.65]
[1725425180364,3.92683325,127.38,127.32,9.65]
[1725425180565,7.85263325,127.38,127.34,3.9269]
[1725425180966,0.06019051,127.37,127.35,0.051086]
[1725425182660,3.98639051,127.37,127.35,0.051086]
[1725425184370,7.847,127.36,127.35,0.051086]
[1725425184570,11.7734,127.36,127.35,0.051086]
[1725425185269,7.847,127.36,127.35,0.051086]
[1725425187064,7.90719051,127.37,127.35,0.051086]
[1725425187269,11.7734,127.36,127.35,0.051086]
[1725425187670,7.847,127.36,127.35,0.051086]
[1725425189276,7.847,127.36,127.23,4.2336]
[1725425189582,17.497,127.34,127.27,9.65]
[1725425189879,11.7742,127.34,127.3,3.9282]
[1725425190082,9.65,127.33,127.3,3.9282]
[1725425190283,13.67609147,127.33,127.31,0.05243265]
[1725425190484,0.05953737,127.33,127.31,0.05243265]
[1725425192178,0.05953737,127.33,127.31,3.98043265]
[1725425193581,0.05953737,127.33,127.31,0.05243265]
[1725425194181,9.65,127.32,127.31,0.05243265]
[1725425197584,3.98693737,127.33,127.31,0.05243265]
[1725425199188,0.05953737,127.33,127.31,0.05243265]
[1725425199386,0.05953737,127.33,127.31,3.98033265]
[1725425199689,0.05953737,127.33,127.31,9.70243265]
[1725425199889,0.05953737,127.33,127.32,3.9277]
[1725425200078,0.05953737,127.33,127.31,9.70243265]
[1725425200589,0.05953737,127.33,127.31,13.63013265]
[1725425201086,0.05953737,127.33,127.32,3.9277]
[1725425201394,17.497,127.38,127.32,9.65]
[1725425201591,17.497,127.38,127.33,9.65]
[1725425201784,21.38915433,127.38,127.33,9.65]
[1725425201979,3.9261,127.37,127.33,9.65]
[1725425202180,0.0541764,127.36,127.34,0.05443791]
[1725425202386,7.9011764,127.36,127.34,0.05443791]
[1725425203279,7.9011764,127.36,127.34,3.98143791]
[1725425203683,50.0,127.4,127.35,9.65]
[1725425203881,50.0,127.4,127.34,0.05443791]
[1725425203882,50.0,127.4,127.36,9.65]
[1725425204092,50.0,127.4,127.39,3.9255]
[1725425205496,59.65,127.4,127.38,3.97743042]
[1725425205985,50.0,127.4,127.38,3.97743042]
[1725425207392,50.0,127.4,127.39,3.9255]
[1725425224718,50.0,127.4,127.39,28.0555]
[1725425225021,24.13,127.49,127.39,24.13]
[1725425225224,24.13,127.49,127.41,24.13]
[1725425225919,0.05972542,127.46,127.45,3.9235]
[1725425226120,0.05972542,127.46,127.44,0.05446329]
[1725425227321,3.98312542,127.46,127.44,0.05446329]
[1725425228720,0.05972542,127.46,127.44,3.97826329]
[1725425228920,7.90672542,127.46,127.44,3.97826329]
[1725425230415,0.05972542,127.46,127.44,3.97826329]
[1725425230833,0.05972542,127.46,127.45,3.9236]
[1725425232029,0.05972542,127.46,127.44,3.97826329]
[1725425232326,0.05972542,127.46,127.44,0.05446329]
[1725425239038,0.05972542,127.46,127.44,3.97846329]
[1725425240032,0.05972542,127.46,127.44,13.61846329]
[1725425241442,0.05972542,127.46,127.44,3.97846329]
[1725425242433,9.69972542,127.46,127.44,0.05446329]
[1725425242636,9.64,127.45,127.38,9.64]
[1725425242842,17.487,127.44,127.37,3.90898246]
[1725425243029,17.487,127.44,127.38,9.64]
[1725425243438,3.9248,127.42,127.39,3.9253]
[1725425243735,3.97980685,127.42,127.39,3.98422511]
[1725425245141,7.91745659,127.41,127.39,0.05892511]
[1725425245440,17.487,127.41,127.35,9.64]
[1725425245632,3.94466632,127.4,127.35,9.64]
[1725425246034,7.87006632,127.4,127.37,3.9261]
[1725425246542,7.92571569,127.4,127.37,3.98063832]
[1725425247338,3.98104937,127.4,127.37,3.98063832]
[1725425251043,0.05564937,127.4,127.38,13.5657]
[1725425251553,0.05564937,127.4,127.39,13.5655]
[1725425268676,3.82944255,127.45,127.43,3.9241]
[1725425268869,3.82944255,127.45,127.42,9.64]
[1725425269271,3.82944255,127.45,127.43,3.9241]
[1725425269676,3.88059435,127.45,127.43,3.98137276]
[1725425273178,9.64,127.44,127.34,12.0257]
[1725425273483,9.64,127.43,127.37,9.64]
[1725425273776,3.9246,127.42,127.39,3.9253]
[1725425274278,7.98848581,127.42,127.39,3.98031157]
[1725425274479,3.98157178,127.42,127.39,3.98031157]
[1725425275078,0.05697178,127.42,127.4,3.9251]
[1725425276983,3.98157178,127.42,127.39,3.98051157]
[1725425281487,3.925,127.41,127.39,0.05501157]
[1725425281677,9.64,127.41,127.39,0.05501157]
[1725425281884,9.64,127.4,127.39,0.05501157]
[1725425282689,13.5652,127.4,127.39,0.05501157]
[1725425284290,3.9252,127.4,127.39,0.05501157]
[1725425285299,14.9435,127.41,127.39,0.05501157]
[1725425285494,13.1505,127.41,127.39,0.05501157]
[1725425286585,1.3785,127.41,127.39,0.05501157]
[1725425287492,5.3034,127.41,127.39,0.05501157]
[1725425288085,13.29627178,127.42,127.39,3.98031157]
[1725425288291,0.05697178,127.42,127.39,0.05501157]
[1725425289301,0.05697178,127.42,127.4,3.9249]
[1725425289896,3.98157178,127.42,127.39,3.98041157]
[1725425290596,0.05697178,127.42,127.4,3.9251]
[1725425295196,0.05697178,127.42,127.39,0.05501157]
[1725425295797,0.05697178,127.42,127.4,3.9251]
[1725425296191,0.05697178,127.42,127.39,0.05501157]
[1725425296397,3.9249,127.41,127.39,0.05501157]
[1725425300098,11.82867178,127.42,127.39,3.98051157]
[1725425308499,7.90397178,127.42,127.39,0.05501157]
[1725425308700,0.05697178,127.42,127.39,0.05501157]
[1725425309406,0.05697178,127.42,127.39,3.98031157]
[1725425309603,0.05697178,127.42,127.4,9.64]
[1725425309810,0.05697178,127.42,127.41,13.5649]
[1725425310108,0.05697178,127.42,127.41,17.533904]
[1725425310610,3.9232,127.47,127.44,3.9239]
[1725425310803,3.9232,127.47,127.44,13.5639]
[1725425311005,114.32901963,127.5,127.44,13.5639]
[1725425311608,0.05358183,127.48,127.46,0.05619512]
[1725425312107,0.05358183,127.48,127.46,3.97929512]
[1725425314312,7.90058183,127.48,127.46,3.97929512]
[1725425316509,0.05358183,127.48,127.47,3.923]
[1725425316713,0.05358183,127.48,127.46,0.05619512]
[1725425318310,0.05358183,127.48,127.46,3.97939512]
[1725425324412,0.05358183,127.48,127.47,13.563]
[1725425327516,307.13299179,127.59,127.47,9.64]
[1725425327517,11.74935789,127.57,127.47,9.64]
[1725425327818,28.90501862,127.55,127.5,9.64]
[1725425328314,32.82581862,127.55,127.51,3.9216]
[1725425328517,0.05708939,127.54,127.52,0.05999147]
[1725425329008,7.90408939,127.54,127.52,0.05999147]
[1725425329408,0.05708939,127.54,127.52,0.05999147]
[1725425330110,7.90408939,127.54,127.52,0.05999147]
[1725425331210,11.82498939,127.54,127.52,0.05999147]
[1725425331913,7.90408939,127.54,127.52,3.98139147]
[1725425334512,7.90408939,127.54,127.52,0.05999147]
[1725425335214,11.82518939,127.54,127.52,0.05999147]
[1725425339611,7.90408939,127.54,127.52,0.05999147]
[1725425339809,7.90408939,127.54,127.52,13.62149147]
[1725425342723,7.90408939,127.54,127.52,0.05999147]
[1725425344624,7.90408939,127.54,127.52,3.98129147]
[1725425344825,7.90408939,127.54,127.52,13.62129147]
[1725425345730,0.05708939,127.54,127.52,13.62129147]
[1725425347332,7.90408939,127.54,127.52,13.62129147]
[1725425347928,0.05708939,127.54,127.53,13.5612]
[1725425353728,0.05708939,127.54,127.52,0.05999147]
[1725425354438,0.05708939,127.54,127.53,3.9212]
[1725425358835,0.05708939,127.54,127.53,13.5612]
[1725425365145,0.05708939,127.54,127.53,3.9212]
[1725425365345,0.05708939,127.54,127.53,13.5612]
[1725425374536,121.24717,127.6,127.56,3.9201]
[1725425374838,121.24717,127.6,127.56,13.5601]
[1725425375041,7.846,127.58,127.56,13.5601]
[1725425375645,7.89585897,127.58,127.56,13.61529547]
[1725425376146,0.04985897,127.58,127.57,3.92]
[1725425379754,3.9187,127.62,127.59,3.9191]
[1725425379945,3.9187,127.62,127.6,9.64]
[1725425380755,7.89225322,127.62,127.6,13.60940579]
[1725425381050,0.04625322,127.62,127.61,9.64]
[1725425381445,0.04625322,127.62,127.61,13.5587]
[1725425382155,0.04625322,127.62,127.61,3.9187]
[1725425382451,0.04625322,127.62,127.61,13.5587]
[1725425389458,0.04625322,127.62,127.61,3.9187]
[1725425389663,0.04625322,127.62,127.61,13.5587]
[1725425393962,0.04625322,127.62,127.61,3.9187]
[1725425394163,0.04625322,127.62,127.61,13.5587]
[1725425398463,7.846,127.66,127.63,3.918]
[1725425398764,3.9174,127.66,127.64,9.64]
[1725425399562,3.9174,127.66,127.64,9.69887488]
[1725425400568,7.846,127.65,127.64,9.69887488]
[1725425405775,4.2503,127.67,127.65,3.9172]
[1725425405970,1.4198,127.67,127.64,9.69887488]
[1725425406167,1.4198,127.67,127.64,0.05887488]
[1725425406371,3.9175,127.65,127.64,0.05887488]
[1725425408981,3.9183,127.63,127.55,5.39515696]
[1725425409275,3.9183,127.63,127.61,9.64]
[1725425409574,1.4198,127.67,127.62,13.54629661]
[1725425409775,1.4198,127.67,127.62,9.64]
[1725425409975,1.4198,127.67,127.62,13.5583]
[1725425410174,0.05667864,127.66,127.63,0.05699979]
[1725425411476,11.7635,127.65,127.63,0.05699979]
[1725425418277,3.97387864,127.66,127.63,0.05699979]
[1725425418479,0.05667864,127.66,127.63,0.05699979]
[1725425419276,3.9175,127.65,127.63,3.97489979]
[1725425419478,3.9175,127.65,127.63,9.69699979]
[1725425419782,0.05667864,127.66,127.64,9.64]
[1725425420175,11.81997864,127.66,127.64,9.64]
[1725425420579,3.9177,127.65,127.63,0.05699979]
[1725425420780,7.90267864,127.66,127.63,0.05699979]
[1725425421077,17.54267864,127.66,127.6,9.64]
[1725425421271,1.4133,127.65,127.6,9.64]
[1725425421472,3.9182,127.63,127.6,13.5589]
[1725425422079,0.05117946,127.63,127.6,0.06039185]
[1725425422381,9.64,127.62,127.55,3.92795696]
[1725425422574,1.4323,127.61,127.56,9.64]
[1725425422776,3.9192,127.6,127.56,13.56]
[1725425422975,3.9192,127.6,127.57,9.64]
[1725425423376,3.9783653,127.6,127.57,9.69273764]
[1725425423772,0.0591653,127.6,127.57,0.05273764]
[1725425424677,3.9193,127.59,127.57,0.05273764]
[1725425425183,3.9193,127.59,127.57,9.69273764]
[1725425428789,3.9782653,127.6,127.57,0.05273764]
[1725425429288,0.0591653,127.6,127.57,0.05273764]
[1725425429889,0.0591653,127.6,127.58,9.64]
[1725425430085,0.0591653,127.6,127.59,9.64]
[1725425430684,0.0591653,127.6,127.59,13.5593]
[1725425431882,120.34392695,127.65,127.61,3.9185]
[1725425432084,7.846,127.67,127.62,9.64]
[1725425432389,1.3956,127.68,127.63,9.64]
[1725425432589,1.3956,127.68,127.63,13.558]
[1725425432890,7.846,127.65,127.64,0.05721925]
[1725425435292,17.486,127.65,127.56,1.3961]
[1725425435490,9.64,127.65,127.59,9.64]
[1725425435793,3.83127856,127.64,127.59,9.64]
[1725425435997,7.74917856,127.64,127.6,3.9188]
[1725425436298,7.89985779,127.63,127.61,0.05972938]
[1725425437188,7.89985779,127.63,127.61,9.69972938]
[1725425437387,0.05385779,127.63,127.61,13.61832938]
[1725425442001,0.05385779,127.63,127.62,3.9184]
[1725425446093,0.05385779,127.63,127.62,13.5584]
[1725425447000,0.05385779,127.63,127.61,0.05972938]
[1725425447200,4.00778707,127.63,127.61,0.05972938]
[1725425447403,0.05385779,127.63,127.61,0.05972938]
[1725425447603,0.05385779,127.63,127.62,13.5584]
[1725425457912,3.99102366,127.63,127.61,3.97832938]
[1725425458107,0.05385779,127.63,127.61,3.97832938]
[1725425458309,0.05385779,127.63,127.61,0.05972938]
[1725425458610,3.89580756,127.63,127.61,0.05972938]
[1725425458811,0.05385779,127.63,127.61,0.05972938]
[1725425459010,3.9184,127.62,127.61,0.05972938]
[1725425459205,9.64,127.63,127.52,38.56]
[1725425459407,11.7652,127.6,127.56,13.5601]
[1725425460314,0.05394256,127.59,127.57,0.05580916]
[1725425461213,3.9196,127.58,127.57,0.05580916]
[1725425461918,11.7656,127.58,127.57,0.05580916]
[1725425462411,7.846,127.58,127.57,0.05580916]
[1725425464224,0.05394256,127.59,127.57,9.69580916]
[1725425465308,0.05394256,127.59,127.58,9.64]
[1725425468014,0.05394256,127.59,127.58,13.5596]
[1725425472828,0.05394256,127.59,127.57,13.61560916]
[1725425473519,0.05394256,127.59,127.58,9.64]
[1725425473721,0.05394256,127.59,127.57,9.69580916]
[1725425473922,0.05394256,127.59,127.58,9.64]
[1725425474419,0.05394256,127.59,127.58,13.5596]
[1725425476327,3.9182,127.63,127.6,3.919]
[1725425476628,11.7642,127.63,127.61,9.64]
[1725425477126,2.875,127.65,127.62,9.64]
[1725425477334,0.04944223,127.65,127.63,9.64]
[1725425478331,0.04944223,127.65,127.63,13.558]
[1725425479332,3.96694223,127.65,127.63,9.64]
[1725425479830,0.04944223,127.65,127.63,9.64]
[1725425481132,0.04944223,127.65,127.63,13.558]
[1725425486928,0.04944223,127.65,127.64,3.9178]
[1725425487829,0.04944223,127.65,127.64,13.5578]
[1725425492136,0.04944223,127.65,127.64,3.9178]
[1725425492444,0.04944223,127.65,127.64,13.5578]
[1725425508749,11.7629,127.67,127.64,13.5578]
[1725425508949,11.7629,127.67,127.66,9.64]
[1725425511259,7.846,127.67,127.66,9.64]
[1725425514852,0.05783502,127.68,127.66,9.64]
[1725425515557,0.05783502,127.68,127.67,3.9169]
[1725425516348,0.05783502,127.68,127.67,7.80221395]
[1725425516548,3.88178826,127.7,127.68,3.9163]
[1725425516749,7.846,127.71,127.69,9.64]
[1725425517552,7.846,127.71,127.69,13.60688264]
[1725425517553,7.90150515,127.71,127.69,13.60688264]
[1725425520155,7.90150515,127.71,127.69,0.05078264]
[1725425522454,11.81730515,127.71,127.69,0.05078264]
[1725425524661,7.90150515,127.71,127.69,13.60698264]
[1725425524858,7.90150515,127.71,127.7,9.64]
[1725425525055,227.0,127.78,127.7,9.64]
[1725425525259,3.9141,127.76,127.74,9.64]
[1725425526173,4.00494306,127.77,127.74,9.69784628]
[1725425527067,7.91894306,127.77,127.74,9.69784628]
[1725425527370,4.00494306,127.77,127.74,9.69784628]
[1725425527865,3.9141,127.76,127.74,9.69784628]
[1725425528471,4.00494306,127.77,127.74,9.69784628]
[1725425530365,7.91904306,127.77,127.76,9.64]
[1725425531378,3.9141,127.77,127.76,9.64]
[1725425536581,25.73280061,127.78,127.74,0.05784628]
[1725425536977,11.7604,127.75,127.74,0.05784628]
[1725425537478,3.9144,127.75,127.74,0.05784628]
[1725425537675,7.846,127.76,127.74,9.69784628]
[1725425537884,3.9138,127.77,127.75,9.64]
[1725425542382,6.7262,127.78,127.75,9.64]
[1725425542582,6.7262,127.78,127.77,9.64]
[1725425543181,6.7262,127.78,127.75,9.64]
[1725425544280,5.3202,127.78,127.77,9.64]
[1725425547285,3.9136,127.78,127.77,9.64]
[1725425549487,15.64141009,127.79,127.77,9.64]
[1725425549787,5.46409857,127.81,127.78,9.64]
[1725425549983,5.46409857,127.81,127.8,9.64]
[1725425550487,28.94778782,127.89,127.8,9.64]
[1725425550793,3.8439191,127.86,127.83,9.64]
[1725425550987,3.9115,127.85,127.83,9.64]
[1725425551692,2.8319,127.86,127.83,9.64]
[1725425551889,10.6779,127.86,127.83,9.64]
[1725425552588,14.55704492,127.86,127.83,9.64]
[1725425553285,5.3654,127.86,127.85,9.64]
[1725425553495,28.94778782,127.89,127.85,9.64]
[1725425553791,28.94778782,127.89,127.86,9.64]
[1725425553992,3.99657413,127.88,127.86,9.64]
[1725425554187,10.86236554,127.87,127.86,9.64]
[1725425554688,14.77316554,127.87,127.86,9.64]
[1725425554894,10.86236554,127.87,127.85,0.05370476]
[1725425555286,1.4646,127.87,127.85,0.05370476]
[1725425555488,3.9111,127.86,127.85,9.69370476]
[1725425556992,11.7569,127.87,127.85,9.69370476]
[1725425557292,7.846,127.88,127.85,0.05370476]
[1725425557795,3.9111,127.86,127.85,0.05370476]
[1725425559995,3.9109,127.87,127.85,9.69370476]
[1725425560189,11.7569,127.87,127.86,9.64]
[1725425560384,3.84162569,127.88,127.86,9.64]
[1725425560584,7.75222569,127.88,127.86,9.64]
[1725425560784,3.84162569,127.88,127.86,9.64]
[1725425561001,3.9111,127.86,127.85,0.05370476]
[1725425561493,3.9111,127.86,127.85,9.69370476]
[1725425561881,11.7569,127.87,127.85,9.69370476]
[1725425562086,11.7569,127.87,127.86,9.64]
[1725425569898,3.9111,127.86,127.85,0.05370476]
[1725425570106,3.9111,127.86,127.85,9.69370476]
[1725425570399,11.757,127.87,127.85,9.69370476]
[1725425570697,11.757,127.87,127.86,9.64]
[1725425571090,3.9106,127.88,127.86,9.64]
[1725425571294,11.7566,127.88,127.86,9.64]
[1725425571496,7.846,127.88,127.86,9.64]
[1725425571692,3.9108,127.87,127.86,9.64]
[1725425572297,3.88584077,127.9,127.86,9.64]
[1725425572501,110.28349807,127.94,127.89,9.64]
[1725425572702,110.28349807,127.94,127.9,0.05251469]
[1725425573095,1.4483,127.95,127.9,9.69251469]
[1725425573401,9.2943,127.95,127.9,9.69251469]
[1725425574104,7.846,127.94,127.9,9.69251469]
[1725425575197,9.2943,127.95,127.9,9.69251469]
[1725425575403,11.7554,127.92,127.9,9.69251469]
[1725425575599,9.2341,127.97,127.91,9.64]
[1725425575801,1.43733233,127.96,127.93,0.05546267]
[1725425578005,3.9086,127.94,127.93,0.05546267]
[1725425578795,11.7546,127.94,127.93,0.05546267]
[1725425592417,21.3946,127.94,127.93,0.05546267]
[1725425596824,11.7546,127.94,127.93,0.05546267]
[1725425597129,7.846,127.94,127.93,0.05546267]
[1725425598124,11.7546,127.94,127.93,0.05546267]
[1725425604017,7.846,127.94,127.93,0.05546267]
[1725425605819,11.7546,127.94,127.93,0.05546267]
[1725425609235,7.846,127.96,127.93,0.05546267]
[1725425610234,7.846,127.94,127.93,0.05546267]
[1725425613733,9.64,127.97,127.93,0.05546267]
[1725425613734,11.7541,127.96,127.93,0.05546267]
[1725425614330,7.846,127.94,127.93,0.05546267]
[1725425623738,11.7546,127.94,127.93,0.05546267]
[1725425625234,7.846,127.92,127.86,3.98968576]
[1725425625439,7.846,127.92,127.85,4.1649]
[1725425625740,3.91,127.9,127.86,9.64]
[1725425625940,7.846,127.9,127.89,9.64]
[1725425627743,7.8691651,127.91,127.89,9.64]
[1725425627946,7.846,127.9,127.89,9.64]
[1725425628140,7.846,127.9,127.88,0.05236244]
[1725425629551,7.846,127.89,127.88,0.05236244]
[1725425629856,11.7561,127.89,127.88,0.05236244]
[1725425630351,15.61539407,127.89,127.88,0.05236244]
[1725425630553,7.76939407,127.89,127.88,0.05236244]
[1725425633554,15.61539407,127.89,127.88,0.05236244]